[Event "Titled Tuesday Blitz October 5 2021"]
[White "Gorin, Leonid"]
[Black "Bortnyk, Olexandr"]
[WhiteFideId "4131991"]
[BlackFideId "14120828"]
[WhiteElo "2363"]
[BlackElo "2723"]
[Result "1/2-1/2"]
[Round "05"]
[TimeControl "180+1"]
[Date "2021.10.05"]
[WhiteClock "0:00:48"]
[BlackClock "0:00:12"]

1. e4 {[%clk 0:02:59]}  Nf6 {[%clk 0:02:59]} 2. e5 {[%clk 0:02:59]}  Nd5 {[%clk 0:03:00]} 3. d4 {[%clk 0:03:00]}  d6 {[%clk 0:03:00]} 4. Nf3 {[%clk 0:03:00]}  dxe5 {[%clk 0:03:00]} 5. Nxe5 {[%clk 0:02:59]}  c6 {[%clk 0:03:01]} 6. Be2 {[%clk 0:02:58]}  Bf5 {[%clk 0:03:02]} 7. O-O {[%clk 0:02:56]}  Nd7 {[%clk 0:03:02]} 8. Nd3 {[%clk 0:02:55]}  e6 {[%clk 0:03:02]} 9. Nd2 {[%clk 0:02:54]}  Bd6 {[%clk 0:03:01]} 10. Nf3 {[%clk 0:02:54]}  O-O {[%clk 0:03:01]} 11. c4 {[%clk 0:02:54]}  N5f6 {[%clk 0:03:01]} 12. Bg5 {[%clk 0:02:52]}  h6 {[%clk 0:02:59]} 13. Bh4 {[%clk 0:02:52]}  Qc7 {[%clk 0:02:56]} 14. c5 {[%clk 0:02:51]}  Be7 {[%clk 0:02:55]} 15. Bg3 {[%clk 0:02:51]}  Qc8 {[%clk 0:02:53]} 16. b4 {[%clk 0:02:49]}  Ne4 {[%clk 0:02:48]} 17. Qb3 {[%clk 0:02:47]}  a5 {[%clk 0:02:46]} 18. a3 {[%clk 0:02:41]}  a4 {[%clk 0:02:46]} 19. Qb2 {[%clk 0:02:39]}  Nxg3 {[%clk 0:02:34]} 20. hxg3 {[%clk 0:02:38]}  Bf6 {[%clk 0:02:35]} 21. Nde5 {[%clk 0:02:37]}  Be4 {[%clk 0:02:31]} 22. Nc4 {[%clk 0:02:27]}  Qc7 {[%clk 0:02:24]} 23. Rfd1 {[%clk 0:02:24]}  b5 {[%clk 0:02:22]} 24. Nd6 {[%clk 0:02:19]}  Bd5 {[%clk 0:02:21]} 25. Ne5 {[%clk 0:02:16]}  Be7 {[%clk 0:02:19]} 26. Bf3 {[%clk 0:01:49]}  Bxd6 {[%clk 0:02:18]} 27. cxd6 {[%clk 0:01:48]}  Qxd6 {[%clk 0:02:19]} 28. Rac1 {[%clk 0:01:47]}  Rac8 {[%clk 0:02:11]} 29. Bxd5 {[%clk 0:01:41]}  Qxd5 {[%clk 0:01:31]} 30. Nxd7 {[%clk 0:01:39]}  Qxd7 {[%clk 0:01:30]} 31. Rc5 {[%clk 0:01:39]}  Rfd8 {[%clk 0:01:30]} 32. Qc3 {[%clk 0:01:38]}  Qd6 {[%clk 0:01:20]} 33. Rd2 {[%clk 0:01:35]}  Kh8 {[%clk 0:01:18]} 34. Rd3 {[%clk 0:01:34]}  f6 {[%clk 0:01:17]} 35. Re3 {[%clk 0:01:27]}  Qxd4 {[%clk 0:01:16]} 36. Qxd4 {[%clk 0:01:27]}  Rxd4 {[%clk 0:01:17]} 37. Rxe6 {[%clk 0:01:27]}  Rd1+ {[%clk 0:01:13]} 38. Kh2 {[%clk 0:01:26]}  Rd2 {[%clk 0:00:47]} 39. f3 {[%clk 0:01:26]}  Ra2 {[%clk 0:00:46]} 40. Rexc6 {[%clk 0:01:25]}  Rxc6 {[%clk 0:00:39]} 41. Rxc6 {[%clk 0:01:26]}  Rxa3 {[%clk 0:00:40]} 42. Rc5 {[%clk 0:01:26]}  Rb3 {[%clk 0:00:40]} 43. Rxb5 {[%clk 0:01:26]}  Kh7 {[%clk 0:00:41]} 44. Rb7 {[%clk 0:01:24]}  Kg6 {[%clk 0:00:42]} 45. g4 {[%clk 0:01:24]}  h5 {[%clk 0:00:37]} 46. gxh5+ {[%clk 0:01:23]}  Kxh5 {[%clk 0:00:38]} 47. b5 {[%clk 0:01:22]}  g5 {[%clk 0:00:36]} 48. Ra7 {[%clk 0:01:21]}  Rxb5 {[%clk 0:00:36]} 49. Rxa4 {[%clk 0:01:21]}  Rb2 {[%clk 0:00:37]} 50. Kg3 {[%clk 0:01:20]}  Kg6 {[%clk 0:00:37]} 51. Ra5 {[%clk 0:01:20]}  Rb3 {[%clk 0:00:37]} 52. Rc5 {[%clk 0:01:20]}  Kf7 {[%clk 0:00:36]} 53. Ra5 {[%clk 0:01:20]}  Ke6 {[%clk 0:00:36]} 54. Rc5 {[%clk 0:01:20]}  Ra3 {[%clk 0:00:35]} 55. Rb5 {[%clk 0:01:20]}  Ra6 {[%clk 0:00:35]} 56. Rc5 {[%clk 0:01:20]}  Rb6 {[%clk 0:00:36]} 57. Kg4 {[%clk 0:01:19]}  Rb4+ {[%clk 0:00:35]} 58. Kg3 {[%clk 0:01:18]}  Rb2 {[%clk 0:00:35]} 59. Ra5 {[%clk 0:01:17]}  f5 {[%clk 0:00:36]} 60. Ra6+ {[%clk 0:01:17]}  Ke5 {[%clk 0:00:35]} 61. Ra5+ {[%clk 0:01:17]}  Ke6 {[%clk 0:00:34]} 62. Ra6+ {[%clk 0:01:17]}  Kf7 {[%clk 0:00:35]} 63. Ra5 {[%clk 0:01:15]}  Kg6 {[%clk 0:00:36]} 64. Ra6+ {[%clk 0:01:14]}  Kh5 {[%clk 0:00:36]} 65. Kh3 {[%clk 0:01:14]}  Rb3 {[%clk 0:00:32]} 66. Ra5 {[%clk 0:01:12]}  g4+ {[%clk 0:00:30]} 67. Kg3 {[%clk 0:01:12]}  Kg5 {[%clk 0:00:30]} 68. Rc5 {[%clk 0:01:11]}  Ra3 {[%clk 0:00:28]} 69. Rb5 {[%clk 0:01:11]}  Ra4 {[%clk 0:00:23]} 70. fxg4 {[%clk 0:01:06]}  Rxg4+ {[%clk 0:00:24]} 71. Kf3 {[%clk 0:01:06]}  Ra4 {[%clk 0:00:25]} 72. Kg3 {[%clk 0:01:05]}  Ra3+ {[%clk 0:00:25]} 73. Kf2 {[%clk 0:01:05]}  Kg4 {[%clk 0:00:25]} 74. Rb8 {[%clk 0:01:03]}  Ra2+ {[%clk 0:00:24]} 75. Kg1 {[%clk 0:01:02]}  Ra3 {[%clk 0:00:25]} 76. Rg8+ {[%clk 0:01:00]}  Kf4 {[%clk 0:00:25]} 77. Kf2 {[%clk 0:01:00]}  Ra2+ {[%clk 0:00:26]} 78. Kg1 {[%clk 0:01:00]}  Rb2 {[%clk 0:00:26]} 79. Kf1 {[%clk 0:00:59]}  Rb7 {[%clk 0:00:22]} 80. Kf2 {[%clk 0:00:58]}  Rb2+ {[%clk 0:00:22]} 81. Kf1 {[%clk 0:00:58]}  Rc2 {[%clk 0:00:23]} 82. Kg1 {[%clk 0:00:58]}  Ke3 {[%clk 0:00:22]} 83. Re8+ {[%clk 0:00:57]}  Kf4 {[%clk 0:00:23]} 84. Rg8 {[%clk 0:00:57]}  Rc7 {[%clk 0:00:22]} 85. Kf2 {[%clk 0:00:56]}  Re7 {[%clk 0:00:22]} 86. Rg6 {[%clk 0:00:55]}  Rd7 {[%clk 0:00:22]} 87. Rg8 {[%clk 0:00:55]}  Rb7 {[%clk 0:00:22]} 88. Rg6 {[%clk 0:00:54]}  Ke4 {[%clk 0:00:21]} 89. Re6+ {[%clk 0:00:54]}  Kd5 {[%clk 0:00:22]} 90. Re8 {[%clk 0:00:53]}  Rb3 {[%clk 0:00:21]} 91. Re3 {[%clk 0:00:53]}  Rb1 {[%clk 0:00:19]} 92. Kf3 {[%clk 0:00:53]}  Rf1+ {[%clk 0:00:18]} 93. Ke2 {[%clk 0:00:53]}  Rh1 {[%clk 0:00:16]} 94. Kf3 {[%clk 0:00:53]}  Kd4 {[%clk 0:00:16]} 95. Re8 {[%clk 0:00:50]}  Rf1+ {[%clk 0:00:16]} 96. Ke2 {[%clk 0:00:50]}  Rf4 {[%clk 0:00:15]} 97. g3 {[%clk 0:00:50]}  Re4+ {[%clk 0:00:11]} 98. Rxe4+ {[%clk 0:00:48]}  Kxe4 {[%clk 0:00:10]} 99. Kf2 {[%clk 0:00:49]}  f4 {[%clk 0:00:11]} 100. gxf4 {[%clk 0:00:48]}  Kxf4 {[%clk 0:00:12]} 1/2-1/2


[Site "https://www.chess.com"]

[Event "Titled Tuesday Blitz October 5 2021"]
[White "Harshavardhan G B"]
[Black "Maghsoodloo, Parham"]
[WhiteFideId "25059009"]
[BlackFideId "12539929"]
[WhiteElo "1825"]
[BlackElo "2601"]
[Result "1/2-1/2"]
[Round "05"]
[TimeControl "180+1"]
[Date "2021.10.05"]
[WhiteClock "0:00:16"]
[BlackClock "0:00:23"]

1. d4 {[%clk 0:02:44]}  Nf6 {[%clk 0:02:37]} 2. Nf3 {[%clk 0:02:43]}  e6 {[%clk 0:02:34]} 3. Bg5 {[%clk 0:02:42]}  d5 {[%clk 0:02:34]} 4. e3 {[%clk 0:02:40]}  h6 {[%clk 0:02:34]} 5. Bh4 {[%clk 0:02:40]}  Nbd7 {[%clk 0:02:34]} 6. Nbd2 {[%clk 0:02:39]}  c5 {[%clk 0:02:35]} 7. c3 {[%clk 0:02:39]}  Qb6 {[%clk 0:02:35]} 8. Qc2 {[%clk 0:02:37]}  Bd6 {[%clk 0:02:35]} 9. Bd3 {[%clk 0:02:36]}  O-O {[%clk 0:02:35]} 10. O-O {[%clk 0:02:36]}  Re8 {[%clk 0:02:33]} 11. Rae1 {[%clk 0:02:25]}  Qc7 {[%clk 0:02:31]} 12. Qb1 {[%clk 0:02:01]}  b6 {[%clk 0:02:28]} 13. e4 {[%clk 0:02:00]}  dxe4 {[%clk 0:02:28]} 14. Nxe4 {[%clk 0:02:00]}  Nxe4 {[%clk 0:02:29]} 15. Bxe4 {[%clk 0:02:00]}  Bb7 {[%clk 0:02:29]} 16. Bg3 {[%clk 0:01:56]}  Bxg3 {[%clk 0:02:29]} 17. hxg3 {[%clk 0:01:55]}  Rad8 {[%clk 0:02:30]} 18. Bxb7 {[%clk 0:01:44]}  Qxb7 {[%clk 0:02:31]} 19. Re2 {[%clk 0:01:32]}  cxd4 {[%clk 0:02:19]} 20. Nxd4 {[%clk 0:01:33]}  Nc5 {[%clk 0:02:17]} 21. Rfe1 {[%clk 0:01:32]}  Rd5 {[%clk 0:02:18]} 22. b4 {[%clk 0:01:25]}  Na4 {[%clk 0:02:15]} 23. Qb3 {[%clk 0:01:24]}  b5 {[%clk 0:02:15]} 24. Nxb5 {[%clk 0:01:15]}  Rxb5 {[%clk 0:01:50]} 25. Qxa4 {[%clk 0:01:13]}  Rc8 {[%clk 0:01:50]} 26. Qb3 {[%clk 0:01:12]}  a5 {[%clk 0:01:49]} 27. a3 {[%clk 0:01:12]}  Rbc5 {[%clk 0:01:49]} 28. Rxe6 {[%clk 0:01:04]}  Rxc3 {[%clk 0:01:29]} 29. Re8+ {[%clk 0:01:01]}  Kh7 {[%clk 0:01:30]} 30. Qb1+ {[%clk 0:01:00]}  g6 {[%clk 0:01:30]} 31. Rxc8 {[%clk 0:00:56]}  Qxc8 {[%clk 0:01:29]} 32. bxa5 {[%clk 0:00:56]}  Rxa3 {[%clk 0:01:28]} 33. Qb4 {[%clk 0:00:51]}  Rc3 {[%clk 0:01:11]} 34. Re7 {[%clk 0:00:32]}  Rc1+ {[%clk 0:01:02]} 35. Kh2 {[%clk 0:00:30]}  Qf5 {[%clk 0:01:02]} 36. Qf4 {[%clk 0:00:20]}  Qxf4 {[%clk 0:00:59]} 37. gxf4 {[%clk 0:00:20]}  Kg7 {[%clk 0:01:00]} 38. Ra7 {[%clk 0:00:20]}  Ra1 {[%clk 0:01:01]} 39. a6 {[%clk 0:00:20]}  Kf6 {[%clk 0:01:01]} 40. Kg3 {[%clk 0:00:20]}  h5 {[%clk 0:01:02]} 41. Kf3 {[%clk 0:00:20]}  Ke6 {[%clk 0:01:02]} 42. g3 {[%clk 0:00:20]}  f6 {[%clk 0:01:01]} 43. Ke4 {[%clk 0:00:20]}  Ra4+ {[%clk 0:01:00]} 44. Kd3 {[%clk 0:00:20]}  Kf5 {[%clk 0:01:00]} 45. Ra8 {[%clk 0:00:20]}  Kg4 {[%clk 0:00:58]} 46. Ke3 {[%clk 0:00:18]}  Ra3+ {[%clk 0:00:57]} 47. Ke4 {[%clk 0:00:18]}  Ra4+ {[%clk 0:00:57]} 48. Kd5 {[%clk 0:00:18]}  Kf3 {[%clk 0:00:58]} 49. Ke6 {[%clk 0:00:17]}  Kxf2 {[%clk 0:00:42]} 50. f5 {[%clk 0:00:17]}  gxf5 {[%clk 0:00:34]} 51. a7 {[%clk 0:00:17]}  Ra6+ {[%clk 0:00:19]} 52. Kxf5 {[%clk 0:00:16]}  Kf3 {[%clk 0:00:20]} 53. Kg6 {[%clk 0:00:13]}  Kxg3 {[%clk 0:00:19]} 54. Kxh5 {[%clk 0:00:13]}  Kf4 {[%clk 0:00:19]} 55. Kg6 {[%clk 0:00:13]}  f5+ {[%clk 0:00:19]} 56. Kf7 {[%clk 0:00:14]}  Kf3 {[%clk 0:00:20]} 57. Ke7 {[%clk 0:00:14]}  f4 {[%clk 0:00:20]} 58. Kd7 {[%clk 0:00:15]}  Kf2 {[%clk 0:00:21]} 59. Kc7 {[%clk 0:00:15]}  f3 {[%clk 0:00:22]} 60. Kb7 {[%clk 0:00:15]}  Ra1 {[%clk 0:00:22]} 61. Rf8 {[%clk 0:00:13]}  Kg2 {[%clk 0:00:22]} 62. Rg8+ {[%clk 0:00:13]}  Kf1 {[%clk 0:00:23]} 63. Rg6 {[%clk 0:00:13]}  f2 {[%clk 0:00:21]} 64. Ra6 {[%clk 0:00:13]}  Rxa6 {[%clk 0:00:22]} 65. Kxa6 {[%clk 0:00:14]}  Ke1 {[%clk 0:00:22]} 66. a8=Q {[%clk 0:00:14]}  f1=Q+ {[%clk 0:00:23]} 67. Ka7 {[%clk 0:00:14]}  Qf7+ {[%clk 0:00:23]} 68. Kb8 {[%clk 0:00:15]}  Qf8+ {[%clk 0:00:23]} 69. Ka7 {[%clk 0:00:16]}  Qxa8+ {[%clk 0:00:23]} 70. Kxa8 {[%clk 0:00:16]} 1/2-1/2


[Site "https://www.chess.com"]

[Event "Titled Tuesday Blitz October 5 2021"]
[White "Janaszak, Dawid"]
[Black "De Silva, L M S T"]
[WhiteFideId "1119206"]
[BlackFideId "9953698"]
[WhiteElo "2215"]
[BlackElo "1621"]
[Result "0-1"]
[Round "05"]
[TimeControl "180+1"]
[Date "2021.10.05"]
[WhiteClock "0:00:05"]
[BlackClock "0:00:54"]

1. d4 {[%clk 0:03:00]}  Nf6 {[%clk 0:03:00]} 2. Nf3 {[%clk 0:03:00]}  e6 {[%clk 0:03:00]} 3. Bf4 {[%clk 0:02:58]}  d5 {[%clk 0:03:00]} 4. e3 {[%clk 0:02:57]}  Bd6 {[%clk 0:03:01]} 5. Nbd2 {[%clk 0:02:57]}  O-O {[%clk 0:03:01]} 6. Bd3 {[%clk 0:02:55]}  Bxf4 {[%clk 0:03:01]} 7. exf4 {[%clk 0:02:56]}  Qd6 {[%clk 0:03:01]} 8. Ne5 {[%clk 0:02:50]}  b6 {[%clk 0:03:02]} 9. Qe2 {[%clk 0:02:47]}  c5 {[%clk 0:03:01]} 10. dxc5 {[%clk 0:02:41]}  bxc5 {[%clk 0:03:00]} 11. c3 {[%clk 0:02:37]}  Bb7 {[%clk 0:02:59]} 12. O-O {[%clk 0:02:36]}  Nc6 {[%clk 0:02:59]} 13. Rfe1 {[%clk 0:02:30]}  Ne7 {[%clk 0:02:58]} 14. Ndf3 {[%clk 0:02:18]}  Qc7 {[%clk 0:02:57]} 15. Ba6 {[%clk 0:02:10]}  Rab8 {[%clk 0:02:56]} 16. Bxb7 {[%clk 0:02:09]}  Rxb7 {[%clk 0:02:57]} 17. b3 {[%clk 0:02:04]}  Nf5 {[%clk 0:02:57]} 18. g3 {[%clk 0:02:01]}  Nd6 {[%clk 0:02:56]} 19. Rac1 {[%clk 0:01:56]}  Rfb8 {[%clk 0:02:49]} 20. c4 {[%clk 0:01:56]}  d4 {[%clk 0:02:48]} 21. h4 {[%clk 0:01:48]}  a5 {[%clk 0:02:48]} 22. Nd2 {[%clk 0:01:40]}  a4 {[%clk 0:02:41]} 23. g4 {[%clk 0:01:41]}  Nd7 {[%clk 0:02:36]} 24. Nd3 {[%clk 0:01:37]}  Qc6 {[%clk 0:02:29]} 25. h5 {[%clk 0:01:27]}  Ra7 {[%clk 0:02:22]} 26. h6 {[%clk 0:01:25]}  axb3 {[%clk 0:02:19]} 27. axb3 {[%clk 0:01:25]}  Ra2 {[%clk 0:02:14]} 28. hxg7 {[%clk 0:01:22]}  Rxb3 {[%clk 0:02:10]} 29. Ra1 {[%clk 0:00:59]}  Rba3 {[%clk 0:02:08]} 30. Rxa2 {[%clk 0:00:59]}  Rxa2 {[%clk 0:02:09]} 31. f5 {[%clk 0:00:58]}  Nxc4 {[%clk 0:01:54]} 32. fxe6 {[%clk 0:00:56]}  fxe6 {[%clk 0:01:54]} 33. Nc1 {[%clk 0:00:34]}  Rc2 {[%clk 0:01:22]} 34. Qf3 {[%clk 0:00:15]}  Qxf3 {[%clk 0:01:19]} 35. Nxf3 {[%clk 0:00:16]}  Kxg7 {[%clk 0:01:10]} 36. Nd3 {[%clk 0:00:16]}  Rc3 {[%clk 0:01:11]} 37. Rd1 {[%clk 0:00:13]}  e5 {[%clk 0:01:09]} 38. Ng5 {[%clk 0:00:07]}  Nf6 {[%clk 0:01:07]} 39. Ne6+ {[%clk 0:00:07]}  Kg8 {[%clk 0:01:02]} 40. g5 {[%clk 0:00:06]}  Ne4 {[%clk 0:00:59]} 41. Nexc5 {[%clk 0:00:05]}  Nxc5 {[%clk 0:00:58]} 42. Nxc5 {[%clk 0:00:06]}  Nb2 {[%clk 0:00:57]} 43. Rb1 {[%clk 0:00:06]}  Rxc5 {[%clk 0:00:57]} 44. Rxb2 {[%clk 0:00:07]}  e4 {[%clk 0:00:56]} 45. f4 {[%clk 0:00:05]}  d3 {[%clk 0:00:54]} 46. Kf2 {[%clk 0:00:05]}  Rc2+ {[%clk 0:00:54]} 0-1


[Site "https://www.chess.com"]

[Event "Titled Tuesday Blitz October 5 2021"]
[White "Jary, Sergey"]
[Black "Budrewicz, Krzysztof"]
[WhiteFideId "14110350"]
[BlackFideId "1127950"]
[WhiteElo "2260"]
[BlackElo "2242"]
[Result "1-0"]
[Round "05"]
[TimeControl "180+1"]
[Date "2021.10.05"]
[WhiteClock "0:01:50"]
[BlackClock "0:01:09"]

1. e4 {[%clk 0:03:00]}  g6 {[%clk 0:02:58]} 2. d4 {[%clk 0:03:00]}  Bg7 {[%clk 0:02:58]} 3. c4 {[%clk 0:03:00]}  c5 {[%clk 0:02:55]} 4. d5 {[%clk 0:03:00]}  d6 {[%clk 0:02:54]} 5. Bd3 {[%clk 0:02:58]}  e6 {[%clk 0:02:54]} 6. Ne2 {[%clk 0:02:57]}  Ne7 {[%clk 0:02:53]} 7. O-O {[%clk 0:02:56]}  O-O {[%clk 0:02:53]} 8. Nbc3 {[%clk 0:02:56]}  exd5 {[%clk 0:02:50]} 9. cxd5 {[%clk 0:02:56]}  a6 {[%clk 0:02:49]} 10. a4 {[%clk 0:02:57]}  Nd7 {[%clk 0:02:49]} 11. Bg5 {[%clk 0:02:54]}  Ne5 {[%clk 0:02:47]} 12. Bc2 {[%clk 0:02:52]}  h6 {[%clk 0:02:48]} 13. Bh4 {[%clk 0:02:51]}  g5 {[%clk 0:02:48]} 14. Bg3 {[%clk 0:02:51]}  f5 {[%clk 0:02:47]} 15. f4 {[%clk 0:02:48]}  Ng4 {[%clk 0:02:37]} 16. Qd2 {[%clk 0:02:43]}  fxe4 {[%clk 0:02:30]} 17. fxg5 {[%clk 0:02:36]}  e3 {[%clk 0:02:26]} 18. Qd3 {[%clk 0:02:36]}  Bf5 {[%clk 0:02:20]} 19. Qd1 {[%clk 0:02:35]}  hxg5 {[%clk 0:02:14]} 20. Ne4 {[%clk 0:02:27]}  Bxe4 {[%clk 0:02:10]} 21. Bxe4 {[%clk 0:02:28]}  Rxf1+ {[%clk 0:02:07]} 22. Qxf1 {[%clk 0:02:24]}  Ne5 {[%clk 0:01:59]} 23. Nc3 {[%clk 0:02:18]}  c4 {[%clk 0:01:51]} 24. Qe2 {[%clk 0:02:18]}  N7g6 {[%clk 0:01:37]} 25. Qh5 {[%clk 0:02:09]}  Qe8 {[%clk 0:01:32]} 26. Rf1 {[%clk 0:02:05]}  e2 {[%clk 0:01:25]} 27. Nxe2 {[%clk 0:02:01]}  b6 {[%clk 0:01:24]} 28. Bxe5 {[%clk 0:01:56]}  Bxe5 {[%clk 0:01:09]} 29. Bxg6 {[%clk 0:01:53]}  Qe7 {[%clk 0:01:09]} 30. Rf7 {[%clk 0:01:50]} 1-0


[Site "https://www.chess.com"]

[Event "Titled Tuesday Blitz October 5 2021"]
[White "King, Alexander"]
[Black "Vinod, Kumar Sharma"]
[WhiteFideId "2063620"]
[BlackFideId "5013518"]
[WhiteElo "2306"]
[BlackElo "2415"]
[Result "1-0"]
[Round "05"]
[TimeControl "180+1"]
[Date "2021.10.05"]
[WhiteClock "0:00:09"]
[BlackClock "0:00:08"]

1. d4 {[%clk 0:03:00]}  d5 {[%clk 0:02:56]} 2. c4 {[%clk 0:03:01]}  dxc4 {[%clk 0:02:55]} 3. Nf3 {[%clk 0:03:01]}  Nf6 {[%clk 0:02:56]} 4. e3 {[%clk 0:03:01]}  Bg4 {[%clk 0:02:55]} 5. Bxc4 {[%clk 0:03:02]}  e6 {[%clk 0:02:56]} 6. Nc3 {[%clk 0:03:02]}  Nbd7 {[%clk 0:02:55]} 7. h3 {[%clk 0:03:01]}  Bh5 {[%clk 0:02:55]} 8. g4 {[%clk 0:02:52]}  Bg6 {[%clk 0:02:54]} 9. Nh4 {[%clk 0:02:52]}  Bb4 {[%clk 0:02:40]} 10. Nxg6 {[%clk 0:02:44]}  hxg6 {[%clk 0:02:41]} 11. Bf1 {[%clk 0:02:43]}  c6 {[%clk 0:02:38]} 12. Bg2 {[%clk 0:02:37]}  Qe7 {[%clk 0:02:30]} 13. a3 {[%clk 0:02:35]}  Bd6 {[%clk 0:02:27]} 14. g5 {[%clk 0:02:18]}  Nd5 {[%clk 0:02:23]} 15. h4 {[%clk 0:02:03]}  Nxc3 {[%clk 0:02:06]} 16. bxc3 {[%clk 0:02:04]}  e5 {[%clk 0:02:06]} 17. Qb3 {[%clk 0:01:46]}  Rb8 {[%clk 0:01:49]} 18. a4 {[%clk 0:01:40]}  O-O {[%clk 0:01:35]} 19. Bd2 {[%clk 0:01:25]}  c5 {[%clk 0:01:32]} 20. Kf1 {[%clk 0:00:49]}  b6 {[%clk 0:01:22]} 21. Qd1 {[%clk 0:00:40]}  cxd4 {[%clk 0:01:16]} 22. cxd4 {[%clk 0:00:41]}  exd4 {[%clk 0:01:16]} 23. exd4 {[%clk 0:00:42]}  Bb4 {[%clk 0:01:08]} 24. Be3 {[%clk 0:00:41]}  Qd6 {[%clk 0:01:03]} 25. h5 {[%clk 0:00:37]}  Rfe8 {[%clk 0:00:50]} 26. Qg4 {[%clk 0:00:30]}  Nf8 {[%clk 0:00:47]} 27. h6 {[%clk 0:00:19]}  gxh6 {[%clk 0:00:43]} 28. Rxh6 {[%clk 0:00:18]}  Ne6 {[%clk 0:00:25]} 29. d5 {[%clk 0:00:11]}  Ng7 {[%clk 0:00:21]} 30. Bd4 {[%clk 0:00:08]}  Re5 {[%clk 0:00:20]} 31. Qh4 {[%clk 0:00:03]}  Nh5 {[%clk 0:00:19]} 32. Bxe5 {[%clk 0:00:02]}  Qxe5 {[%clk 0:00:18]} 33. Rd1 {[%clk 0:00:03]}  Re8 {[%clk 0:00:17]} 34. Kg1 {[%clk 0:00:03]}  Qe2 {[%clk 0:00:14]} 35. Rf1 {[%clk 0:00:03]}  Bd2 {[%clk 0:00:13]} 36. Qd4 {[%clk 0:00:02]}  Re5 {[%clk 0:00:09]} 37. Qh4 {[%clk 0:00:02]}  Kg7 {[%clk 0:00:09]} 38. Qd4 {[%clk 0:00:02]}  Bxg5 {[%clk 0:00:08]} 39. Rxh5 {[%clk 0:00:01]}  gxh5 {[%clk 0:00:08]} 40. f4 {[%clk 0:00:02]}  Bxf4 {[%clk 0:00:07]} 41. Qxf4 {[%clk 0:00:03]}  Qe3+ {[%clk 0:00:07]} 42. Qxe3 {[%clk 0:00:04]}  Rxe3 {[%clk 0:00:08]} 43. Rd1 {[%clk 0:00:05]}  Re2 {[%clk 0:00:08]} 44. d6 {[%clk 0:00:05]}  Ra2 {[%clk 0:00:08]} 45. d7 {[%clk 0:00:05]}  Rxa4 {[%clk 0:00:09]} 46. d8=Q {[%clk 0:00:06]}  Rg4 {[%clk 0:00:09]} 47. Qd3 {[%clk 0:00:07]}  Rxg2+ {[%clk 0:00:09]} 48. Kxg2 {[%clk 0:00:07]}  h4 {[%clk 0:00:09]} 49. Kf3 {[%clk 0:00:08]}  Kf6 {[%clk 0:00:08]} 50. Kf4 {[%clk 0:00:09]}  Ke6 {[%clk 0:00:08]} 51. Qd6# {[%clk 0:00:09]} 1-0


[Site "https://www.chess.com"]

[Event "Titled Tuesday Blitz October 5 2021"]
[White "Kovalev, Vladislav"]
[Black "Siva Mahadevan"]
[WhiteFideId "13504398"]
[BlackFideId "25043153"]
[WhiteElo "2573"]
[BlackElo "2203"]
[Result "0-1"]
[Round "05"]
[TimeControl "180+1"]
[Date "2021.10.05"]
[WhiteClock "0:00:03"]
[BlackClock "0:00:13"]

1. e4 {[%clk 0:03:00]}  c5 {[%clk 0:02:59]} 2. Be2 {[%clk 0:03:01]}  Nc6 {[%clk 0:02:59]} 3. d3 {[%clk 0:03:01]}  e6 {[%clk 0:02:59]} 4. f4 {[%clk 0:03:02]}  d5 {[%clk 0:03:00]} 5. Nf3 {[%clk 0:03:02]}  Bd6 {[%clk 0:03:00]} 6. c3 {[%clk 0:03:02]}  Nge7 {[%clk 0:03:00]} 7. O-O {[%clk 0:03:03]}  O-O {[%clk 0:03:01]} 8. Qe1 {[%clk 0:03:02]}  b6 {[%clk 0:03:00]} 9. Na3 {[%clk 0:02:58]}  Ba6 {[%clk 0:02:57]} 10. Nc2 {[%clk 0:02:59]}  f6 {[%clk 0:02:50]} 11. Kh1 {[%clk 0:02:53]}  Qd7 {[%clk 0:02:50]} 12. Be3 {[%clk 0:02:43]}  Rae8 {[%clk 0:02:49]} 13. Rd1 {[%clk 0:02:42]}  Qc7 {[%clk 0:02:47]} 14. Nd2 {[%clk 0:02:37]}  Kh8 {[%clk 0:02:30]} 15. Qf2 {[%clk 0:02:19]}  Ng6 {[%clk 0:02:25]} 16. g3 {[%clk 0:01:59]}  e5 {[%clk 0:01:17]} 17. f5 {[%clk 0:01:56]}  Nge7 {[%clk 0:01:13]} 18. Qg2 {[%clk 0:01:49]}  d4 {[%clk 0:01:10]} 19. Bg1 {[%clk 0:01:48]}  dxc3 {[%clk 0:01:04]} 20. bxc3 {[%clk 0:01:48]}  Rd8 {[%clk 0:01:05]} 21. Ne3 {[%clk 0:01:42]}  Qb7 {[%clk 0:01:00]} 22. Nd5 {[%clk 0:01:37]}  Bb8 {[%clk 0:00:58]} 23. c4 {[%clk 0:01:18]}  Nd4 {[%clk 0:00:56]} 24. Bh5 {[%clk 0:01:14]}  Nxd5 {[%clk 0:00:50]} 25. exd5 {[%clk 0:01:12]}  b5 {[%clk 0:00:50]} 26. Nb3 {[%clk 0:01:04]}  Bd6 {[%clk 0:00:46]} 27. Rb1 {[%clk 0:00:56]}  Qd7 {[%clk 0:00:42]} 28. Nd2 {[%clk 0:00:41]}  Rb8 {[%clk 0:00:39]} 29. Qh3 {[%clk 0:00:19]}  Kg8 {[%clk 0:00:37]} 30. Be3 {[%clk 0:00:16]}  Rb6 {[%clk 0:00:33]} 31. Rbc1 {[%clk 0:00:08]}  Rfb8 {[%clk 0:00:30]} 32. Ne4 {[%clk 0:00:09]}  bxc4 {[%clk 0:00:30]} 33. dxc4 {[%clk 0:00:10]}  Rb2 {[%clk 0:00:29]} 34. Qg4 {[%clk 0:00:09]}  Qe7 {[%clk 0:00:29]} 35. Bh6 {[%clk 0:00:04]}  R8b7 {[%clk 0:00:21]} 36. Bxg7 {[%clk 0:00:03]}  Qxg7 {[%clk 0:00:20]} 37. Nxd6 {[%clk 0:00:03]}  Qxg4 {[%clk 0:00:18]} 38. Bxg4 {[%clk 0:00:04]}  Rc7 {[%clk 0:00:18]} 39. Ne4 {[%clk 0:00:04]}  Kf7 {[%clk 0:00:19]} 40. d6 {[%clk 0:00:05]}  Rc6 {[%clk 0:00:14]} 41. Rb1 {[%clk 0:00:05]}  Rxb1 {[%clk 0:00:09]} 42. Rxb1 {[%clk 0:00:06]}  Rc8 {[%clk 0:00:09]} 43. d7 {[%clk 0:00:05]}  Rd8 {[%clk 0:00:10]} 44. Nxc5 {[%clk 0:00:06]}  Bxc4 {[%clk 0:00:10]} 45. a4 {[%clk 0:00:03]}  Ke7 {[%clk 0:00:10]} 46. Kg1 {[%clk 0:00:03]}  Bd5 {[%clk 0:00:10]} 47. Kf2 {[%clk 0:00:03]}  Kd6 {[%clk 0:00:11]} 48. Rc1 {[%clk 0:00:03]}  Bc6 {[%clk 0:00:11]} 49. h4 {[%clk 0:00:02]}  Ke7 {[%clk 0:00:11]} 50. Bd1 {[%clk 0:00:03]}  Bxd7 {[%clk 0:00:11]} 51. Ne4 {[%clk 0:00:03]}  Bc6 {[%clk 0:00:11]} 52. Nc5 {[%clk 0:00:02]}  Rb8 {[%clk 0:00:12]} 53. Nd3 {[%clk 0:00:02]}  Bd7 {[%clk 0:00:11]} 54. Ke3 {[%clk 0:00:02]}  Nxf5+ {[%clk 0:00:11]} 55. Kf2 {[%clk 0:00:03]}  Kd6 {[%clk 0:00:12]} 56. g4 {[%clk 0:00:03]}  Nd4 {[%clk 0:00:12]} 57. g5 {[%clk 0:00:04]}  fxg5 {[%clk 0:00:12]} 58. hxg5 {[%clk 0:00:04]}  Rf8+ {[%clk 0:00:13]} 59. Ke3 {[%clk 0:00:05]}  Nf5+ {[%clk 0:00:12]} 60. Kd2 {[%clk 0:00:03]}  Bc6 {[%clk 0:00:13]} 61. Nb4 {[%clk 0:00:02]}  Bb7 {[%clk 0:00:12]} 62. Bc2 {[%clk 0:00:03]}  Nd4 {[%clk 0:00:13]} 63. Rh1 {[%clk 0:00:03]}  Rf2+ {[%clk 0:00:13]} 64. Ke3 {[%clk 0:00:02]}  Rxc2 {[%clk 0:00:13]} 65. Rh6+ {[%clk 0:00:02]}  Kc5 {[%clk 0:00:12]} 66. Nxc2 {[%clk 0:00:01]}  Nxc2+ {[%clk 0:00:13]} 67. Kd2 {[%clk 0:00:02]}  Be4 {[%clk 0:00:13]} 68. Rxh7 {[%clk 0:00:03]}  Bxh7 {[%clk 0:00:13]} 69. g6 {[%clk 0:00:03]}  Bxg6 {[%clk 0:00:13]} 0-1


[Site "https://www.chess.com"]